fUST/lending_fUST_20250530
["ID","MTS","AMOUNT","RATE_DAILY","PERIOD"]
[363050518,1748561441104,-430.0,0.00019452,2]
[363050520,1748561441113,-430.0,0.00019452,2]
[363050522,1748561441122,-430.0,0.00019452,2]
[363050524,1748561441131,-430.0,0.00019452,2]
[363050526,1748561441140,-430.0,0.00019452,2]
[363050528,1748561441150,-430.0,0.00019452,2]
[363050530,1748561441161,-510.0,0.00019452,2]
[363050532,1748561441171,-430.0,0.00019452,2]
[363050534,1748561441180,-430.0,0.00019452,2]
[363050536,1748561441190,-430.0,0.00019452,2]
[363050538,1748561441199,-430.0,0.00019452,2]
[363050540,1748561441209,-570.74,0.00019452,2]
[363050542,1748561441219,-430.0,0.00019452,2]
[363050544,1748561441230,-430.0,0.00019452,2]
[363050546,1748561441239,-430.0,0.00019452,2]
[363050548,1748561441248,-430.0,0.00019452,2]
[363050550,1748561441257,-462.18,0.00019452,2]
[363050552,1748561441267,-430.0,0.00019452,2]
[363050554,1748561441276,-430.0,0.00019452,2]
[363050556,1748561441287,-430.0,0.00019452,2]
[363050558,1748561441296,-430.0,0.00019452,2]
[363050560,1748561441306,-430.0,0.00019452,2]
[363050562,1748561441315,-430.0,0.00019452,2]
[363050564,1748561441324,-430.0,0.00019452,2]
[363050566,1748561441334,-430.0,0.00019452,2]
[363050568,1748561441343,-430.0,0.00019452,2]
[363050570,1748561441352,-430.0,0.00019452,2]
[363050572,1748561441362,-430.0,0.00019452,2]
[363050574,1748561441371,-430.0,0.00019452,2]
[363050576,1748561441380,-430.0,0.00019452,2]
[363050578,1748561441389,-430.0,0.00019452,2]
[363050580,1748561441399,-430.0,0.00019452,2]
[363050582,1748561441409,-430.0,0.00019452,2]
[363050584,1748561441419,-430.0,0.00019452,2]
[363050586,1748561441428,-430.0,0.00019452,2]
[363050588,1748561441437,-490.83,0.00019452,2]
[363050590,1748561441447,-233.09811821,0.00019452,2]
[363050592,1748561441456,-430.0,0.00019452,2]
[363050594,1748561441465,-430.0,0.00019452,2]
[363050596,1748561441475,-430.0,0.00019452,2]
[363050598,1748561441484,-430.0,0.00019452,2]
[363050600,1748561441493,-1003.69,0.00019452,2]
[363050602,1748561441503,-430.0,0.00019452,2]
[363050604,1748561441511,-527.34,0.00019452,2]
[363050606,1748561441520,-430.0,0.00019452,2]
[363050608,1748561441530,-615.59,0.00019452,2]
[363050610,1748561441539,-430.0,0.00019452,2]
[363050612,1748561441548,-430.0,0.00019452,2]
[363050613,1748561441557,-1465.79,0.00019452,2]
[363050615,1748561441567,-430.0,0.00019452,2]
[363050617,1748561441576,-592.81,0.00019452,2]
[363050619,1748561441585,-1359.89,0.00019452,2]
[363050621,1748561441594,-1341.51,0.00019452,2]
[363050623,1748561441604,-430.0,0.00019452,2]
[363050625,1748561441613,-430.0,0.00019452,2]
[363050627,1748561441622,-1254.11,0.00019452,2]
[363050629,1748561441631,-430.0,0.00019452,2]
[363050631,1748561441641,-351.06587421,0.00019452,2]
[363050633,1748561441650,-798.51,0.00019452,2]
[363050635,1748561441661,-436.17,0.00019452,2]
[363050637,1748561441671,-565.15,0.00019452,2]
[363050639,1748561441681,-430.0,0.00019452,2]
[363050641,1748561441690,-430.0,0.00019452,2]
[363050643,1748561441699,-430.0,0.00019452,2]
[363050645,1748561441708,-430.0,0.00019452,2]
[363050647,1748561441717,-4331.66,0.00019452,2]
[363050649,1748561441726,-481.16774827,0.00019452,2]
[363050661,1748561441825,-543.43,0.00019452,2]
[363050663,1748561441844,-1894.21,0.00019452,2]
[363050665,1748561441854,-430.0,0.00019452,2]
[363050667,1748561441864,-430.0,0.00019452,2]
[363050669,1748561441873,-430.0,0.00019452,2]
[363050671,1748561441882,-434.10630352,0.00019452,2]
[363050672,1748561441893,-430.0,0.00019452,2]
[363050674,1748561441903,-430.0,0.00019452,2]
[363050676,1748561441913,-3074.02,0.00019452,2]
[363050678,1748561441922,-430.0,0.00019452,2]
[363050680,1748561441932,-430.0,0.00019452,2]
[363050682,1748561441942,-430.0,0.00019452,2]
[363050684,1748561441952,-430.0,0.00019452,2]
[363050686,1748561441961,-588.86,0.00019452,2]
[363050688,1748561441971,-1588.17,0.00019452,2]
[363050690,1748561441980,-601.77,0.00019452,2]
[363050692,1748561441990,-886.19,0.00019452,2]
[363050694,1748561441999,-189.36,0.00019452,2]
[363050696,1748561442009,-430.0,0.00019452,2]
[363050698,1748561442018,-430.0,0.00019452,2]
[363050700,1748561442027,-2587.31,0.00019452,2]
[363050702,1748561442037,-430.0,0.00019452,2]
[363050704,1748561442047,-1080.19,0.00019452,2]
[363050706,1748561442056,-430.0,0.00019452,2]
[363050708,1748561442065,-430.0,0.00019452,2]
[363050710,1748561442075,-430.0,0.00019452,2]
[363050712,1748561442084,-1472.51,0.00019452,2]
[363050714,1748561442093,-430.0,0.00019452,2]
[363050716,1748561442103,-430.0,0.00019452,2]
[363050717,1748561442112,-624.8,0.00019452,2]
[363050718,1748561442121,-569.52,0.00019452,2]
[363050719,1748561442131,-430.0,0.00019452,2]
[363050720,1748561442141,-430.0,0.00019452,2]
[363050721,1748561442150,-534.30512907,0.00019452,2]
[363050722,1748561442162,-430.0,0.00019452,2]
[363050723,1748561442172,-430.0,0.00019452,2]
[363050724,1748561442181,-960.07,0.00019452,2]
[363050725,1748561442192,-430.0,0.00019452,2]
[363050726,1748561442201,-430.0,0.00019452,2]
[363050727,1748561442211,-430.0,0.00019452,2]
[363050728,1748561442221,-430.0,0.00019452,2]
[363050729,1748561442230,-430.0,0.00019452,2]
[363050730,1748561442240,-1196.95,0.00019452,2]
[363050731,1748561442250,-430.0,0.00019452,2]
[363050732,1748561442259,-430.0,0.00019452,2]
[363050733,1748561442269,-430.0,0.00019452,2]
[363050734,1748561442279,-430.0,0.00019452,2]
[363050735,1748561442290,-430.0,0.00019452,2]
[363050736,1748561442300,-961.28,0.00019452,2]
[363050737,1748561442310,-430.0,0.00019452,2]
[363050738,1748561442319,-430.0,0.00019452,2]
[363050739,1748561442329,-430.0,0.00019452,2]
[363050740,1748561442338,-430.0,0.00019452,2]
[363050741,1748561442347,-430.0,0.00019452,2]
[363050742,1748561442356,-430.0,0.00019452,2]
[363050743,1748561442366,-430.0,0.00019452,2]
[363050744,1748561442375,-430.0,0.00019452,2]
[363050745,1748561442385,-2203.29,0.00019452,2]
[363050746,1748561442394,-430.0,0.00019726,2]
[363050747,1748561442403,-430.0,0.00019726,2]
[363050748,1748561442420,-430.0,0.00019726,2]
[363050749,1748561442429,-430.0,0.00019726,2]
[363050750,1748561442438,-430.0,0.00019726,2]
[363050751,1748561442448,-570.74,0.00019726,2]
[363050753,1748561442457,-430.0,0.00019726,2]
[363050755,1748561442467,-430.0,0.00019726,2]
[363050757,1748561442477,-462.18,0.00019726,2]
[363050759,1748561442486,-430.0,0.00019726,2]
[363050761,1748561442496,-430.0,0.00019726,2]
[363050763,1748561442505,-430.0,0.00019726,2]
[363050765,1748561442514,-430.0,0.00019726,2]
[363050767,1748561442523,-430.0,0.00019726,2]
[363050769,1748561442532,-430.0,0.00019726,2]
[363050771,1748561442542,-430.0,0.00019726,2]
[363050773,1748561442551,-490.83,0.00019726,2]
[363050774,1748561442560,-430.0,0.00019726,2]
[363050777,1748561442569,-430.0,0.00019726,2]
[363050778,1748561442579,-1003.69,0.00019726,2]
[363050781,1748561442588,-527.34,0.00019726,2]
[363050782,1748561442598,-430.0,0.00019726,2]
[363050784,1748561442608,-615.59,0.00019726,2]
[363050786,1748561442617,-430.0,0.00019726,2]
[363050788,1748561442626,-430.0,0.00019726,2]
[363050790,1748561442635,-1465.79,0.00019726,2]
[363050792,1748561442645,-430.0,0.00019726,2]
[363050795,1748561442654,-592.81,0.00019726,2]
[363050796,1748561442667,-1359.89,0.00019726,2]
[363050798,1748561442676,-1341.51,0.00019726,2]
[363050800,1748561442686,-285.645592,0.00019726,2]
[363050802,1748561442695,-430.0,0.00019726,2]
[363050804,1748561442704,-1254.11,0.00019726,2]
[363050806,1748561442713,-430.0,0.00019726,2]
[363050808,1748561442722,-798.51,0.00019726,2]
[363050810,1748561442732,-436.17,0.00019726,2]
[363050812,1748561442741,-565.15,0.00019726,2]
[363050814,1748561442751,-430.0,0.00019726,2]
[363050816,1748561442760,-430.0,0.00019726,2]
[363050819,1748561442770,-430.0,0.00019726,2]
[363050821,1748561442779,-430.0,0.00019726,2]
[363050823,1748561442789,-4331.66,0.00019726,2]
[363050825,1748561442799,-543.43,0.00019726,2]
[363050827,1748561442812,-1894.21,0.00019726,2]
[363050829,1748561442822,-430.0,0.00019726,2]
[363050831,1748561442831,-430.0,0.00019726,2]
[363050833,1748561442840,-3074.02,0.00019726,2]
[363050835,1748561442850,-430.0,0.00019726,2]
[363050837,1748561442859,-430.0,0.00019726,2]
[363050838,1748561442868,-430.0,0.00019726,2]
[363050840,1748561442878,-588.86,0.00019726,2]
[363050842,1748561442887,-1588.17,0.00019726,2]
[363050844,1748561442897,-601.77,0.00019726,2]
[363050846,1748561442910,-886.19,0.00019726,2]
[363050849,1748561442920,-2587.31,0.00019726,2]
[363050851,1748561442930,-1080.19,0.00019726,2]
[363050853,1748561442940,-430.0,0.00019726,2]
[363050854,1748561442949,-430.0,0.00019726,2]
[363050857,1748561442959,-1472.51,0.00019726,2]
[363050858,1748561442968,-430.0,0.00019726,2]
[363050861,1748561442978,-624.8,0.00019726,2]
[363050862,1748561442987,-569.52,0.00019726,2]
[363050864,1748561442996,-430.0,0.00019726,2]
[363050866,1748561443005,-430.0,0.00019726,2]
[363050868,1748561443014,-430.0,0.00019726,2]
[363050870,1748561443024,-430.0,0.00019726,2]
[363050872,1748561443034,-960.07,0.00019726,2]
[363050874,1748561443043,-430.0,0.00019726,2]
[363050876,1748561443052,-430.0,0.00019726,2]
[363050878,1748561443061,-430.0,0.00019726,2]
[363050880,1748561443071,-430.0,0.00019726,2]
[363050882,1748561443080,-430.0,0.00019726,2]
[363050884,1748561443089,-1196.95,0.00019726,2]
[363050886,1748561443098,-430.0,0.00019726,2]
[363050887,1748561443107,-430.0,0.00019726,2]
[363050889,1748561443116,-430.0,0.00019726,2]
[363050892,1748561443126,-430.0,0.00019726,2]
[363050893,1748561443135,-430.0,0.00019726,2]
[363050895,1748561443144,-961.28,0.00019726,2]
[363050897,1748561443154,-430.0,0.00019726,2]
[363050899,1748561443166,-430.0,0.00019726,2]
[363050901,1748561443175,-430.0,0.00019726,2]
[363050903,1748561443184,-430.0,0.00019726,2]
[363050905,1748561443194,-430.0,0.00019726,2]
[363050907,1748561443203,-430.0,0.00019726,2]
[363050909,1748561443212,-2203.29,0.00019726,2]
[363050911,1748561443221,-287.0,0.00019976,2]
[363050913,1748561443232,-430.0,0.0002,2]
[363050915,1748561443241,-430.0,0.0002,2]
[363050917,1748561443251,-430.0,0.0002,2]
[363050920,1748561443260,-430.0,0.0002,2]
[363050922,1748561443269,-430.0,0.0002,2]
[363050924,1748561443278,-570.74,0.0002,2]
[363050926,1748561443287,-430.0,0.0002,2]
[363050928,1748561443296,-430.0,0.0002,2]
[363050930,1748561443306,-462.18,0.0002,2]
[363050931,1748561443315,-430.0,0.0002,2]
[363050933,1748561443324,-834.0,0.0002,2]
[363050935,1748561443334,-430.0,0.0002,2]
[363050937,1748561443343,-430.0,0.0002,2]
[363050939,1748561443352,-430.0,0.0002,2]
[363050941,1748561443361,-2842.0,0.0002,2]
[363050943,1748561443370,-430.0,0.0002,2]
[363050945,1748561443379,-490.83,0.0002,2]
[363050947,1748561443389,-430.0,0.0002,2]
[363050949,1748561443398,-1003.69,0.0002,2]
[363050951,1748561443409,-527.34,0.0002,2]
[363050953,1748561443418,-615.59,0.0002,2]
[363050955,1748561443427,-430.0,0.0002,2]
[363050957,1748561443436,-430.0,0.0002,2]
[363050959,1748561443446,-1465.79,0.0002,2]
[363050961,1748561443455,-430.0,0.0002,2]
[363050963,1748561443464,-592.81,0.0002,2]
[363050965,1748561443473,-1359.89,0.0002,2]
[363050967,1748561443483,-1341.51,0.0002,2]
[363050969,1748561443492,-430.0,0.0002,2]
[363050971,1748561443501,-1254.11,0.0002,2]
[363050973,1748561443511,-430.0,0.0002,2]
[363050975,1748561443520,-798.51,0.0002,2]
[363050977,1748561443529,-436.17,0.0002,2]
[363050979,1748561443539,-565.15,0.0002,2]
[363050981,1748561443548,-430.0,0.0002,2]
[363050983,1748561443557,-430.0,0.0002,2]
[363050985,1748561443566,-430.0,0.0002,2]
[363050987,1748561443575,-430.0,0.0002,2]
[363050989,1748561443584,-4331.66,0.0002,2]
[363050991,1748561443594,-543.43,0.0002,2]
[363050993,1748561443603,-1894.21,0.0002,2]
[363050995,1748561443612,-250.0,0.0002,2]
[363050997,1748561443621,-430.0,0.0002,2]
[363050999,1748561443631,-1362.54240735,0.0002,30]
[363051001,1748561443640,-3074.02,0.0002,2]
[363051003,1748561443649,-430.0,0.0002,2]
[363051005,1748561443660,-430.0,0.0002,2]
[363051007,1748561443669,-430.0,0.0002,2]
[363051009,1748561443678,-588.86,0.0002,2]
[363051011,1748561443687,-1588.17,0.0002,2]
[363051013,1748561443697,-601.77,0.0002,2]
[363051015,1748561443706,-886.19,0.0002,2]
[363051017,1748561443715,-2587.31,0.0002,2]
[363051018,1748561443724,-1080.19,0.0002,2]
[363051021,1748561443734,-430.0,0.0002,2]
[363051022,1748561443743,-442.75,0.0002,2]
[363051024,1748561443753,-1472.51,0.0002,2]
[363051026,1748561443762,-430.0,0.0002,2]
[363051028,1748561443771,-624.8,0.0002,2]
[363051030,1748561443781,-569.52,0.0002,2]
[363051032,1748561443790,-430.0,0.0002,2]
[363051034,1748561443799,-430.0,0.0002,2]
[363051036,1748561443809,-430.0,0.0002,2]
[363051038,1748561443821,-430.0,0.0002,2]
[363051040,1748561443832,-960.07,0.0002,2]
[363051042,1748561443841,-430.0,0.0002,2]
[363051044,1748561443851,-430.0,0.0002,2]
[363051046,1748561443862,-430.0,0.0002,2]
[363051048,1748561443871,-430.0,0.0002,2]
[363051050,1748561443881,-232.96,0.0002,2]
[363051052,1748561443890,-1196.95,0.0002,2]
[363051054,1748561443900,-430.0,0.0002,2]
[363051056,1748561443910,-170607.47787197,0.0002,2]
[363051058,1748561443920,-430.0,0.0002,2]
[363051060,1748561443930,-430.0,0.0002,2]
[363051062,1748561443939,-430.0,0.0002,2]
[363051064,1748561443949,-430.0,0.0002,2]
[363051066,1748561443959,-961.28,0.0002,2]
[363051068,1748561443968,-355.83895684,0.0002,2]
[363051070,1748561443977,-430.0,0.0002,2]
[363051072,1748561443986,-430.0,0.0002,2]
[363051074,1748561443995,-430.0,0.0002,2]
[363051076,1748561444005,-2203.29,0.0002,2]
[363051078,1748561444014,-857.602882,0.00020187,2]
[363051080,1748561444024,-12660.97845086,0.00020262,2]
[363051082,1748561444033,-423.31762986,0.00020268,2]
[363051084,1748561444043,-160.0,0.00020268,2]
[363051086,1748561444052,-160.0,0.00020268,2]
[363051088,1748561444061,-229.26895353,0.00020268,2]
[363051090,1748561444071,-212.70147903,0.00020268,2]
[363051091,1748561444080,-160.0,0.00020268,2]
[363051093,1748561444089,-160.0,0.00020268,2]
[363051095,1748561444099,-160.0,0.00020268,2]
[363051097,1748561444108,-430.0,0.00020273,2]
[363051099,1748561444118,-430.0,0.00020273,2]
[363051101,1748561444127,-430.0,0.00020273,2]
[363051103,1748561444137,-197.45,0.00020273,2]
[363051105,1748561444147,-570.74,0.00020273,2]
[363051107,1748561444156,-430.0,0.00020273,2]
[363051109,1748561444169,-430.0,0.00020273,2]
[363051111,1748561444179,-462.18,0.00020273,2]
[363051113,1748561444189,-430.0,0.00020273,2]
[363051115,1748561444198,-430.0,0.00020273,2]
[363051127,1748561444303,-430.0,0.00020273,2]
[363051129,1748561444313,-430.0,0.00020273,2]
[363051131,1748561444324,-430.0,0.00020273,2]
[363051133,1748561444333,-490.83,0.00020273,2]
[363051135,1748561444343,-430.0,0.00020273,2]
[363051137,1748561444353,-1003.69,0.00020273,2]
[363051139,1748561444363,-527.34,0.00020273,2]
[363051141,1748561444371,-615.59,0.00020273,2]
[363051143,1748561444381,-430.0,0.00020273,2]
[363051145,1748561444390,-430.0,0.00020273,2]
[363051147,1748561444399,-1465.79,0.00020273,2]
[363051149,1748561444408,-430.0,0.00020273,2]
[363051150,1748561444418,-592.81,0.00020273,2]
[363051152,1748561444427,-1359.89,0.00020273,2]
[363051154,1748561444437,-1341.51,0.00020273,2]
[363051156,1748561444446,-430.0,0.00020273,2]
[363051158,1748561444456,-1254.11,0.00020273,2]
[363051160,1748561444465,-430.0,0.00020273,2]
[363051162,1748561444474,-798.51,0.00020273,2]
[363051164,1748561444483,-436.17,0.00020273,2]
[363051166,1748561444492,-565.15,0.00020273,2]
[363051168,1748561444502,-430.0,0.00020273,2]
[363051170,1748561444511,-430.0,0.00020273,2]
[363051172,1748561444521,-430.0,0.00020273,2]
[363051174,1748561444531,-430.0,0.00020273,2]
[363051176,1748561444540,-4331.66,0.00020273,2]
[363051178,1748561444550,-543.43,0.00020273,2]
[363051180,1748561444559,-1894.21,0.00020273,2]
[363051182,1748561444568,-309.25442111,0.00020273,2]
[363051184,1748561444577,-3074.02,0.00020273,2]
[363051186,1748561444587,-430.0,0.00020273,2]
[363051188,1748561444596,-430.0,0.00020273,2]
[363051190,1748561444606,-430.0,0.00020273,2]
[363051192,1748561444615,-588.86,0.00020273,2]
[363051194,1748561444626,-1588.17,0.00020273,2]
[363051196,1748561444636,-601.77,0.00020273,2]
[363051198,1748561444645,-886.19,0.00020273,2]
[363051200,1748561444655,-2587.31,0.00020273,2]
[363051202,1748561444666,-1080.19,0.00020273,2]
[363051204,1748561444676,-430.0,0.00020273,2]
[363051206,1748561444685,-1472.51,0.00020273,2]
[363051208,1748561444694,-430.0,0.00020273,2]
[363051210,1748561444704,-624.8,0.00020273,2]
[363051212,1748561444714,-569.52,0.00020273,2]
[363051214,1748561444723,-430.0,0.00020273,2]
[363051216,1748561444734,-430.0,0.00020273,2]
[363051218,1748561444743,-430.0,0.00020273,2]
[363051220,1748561444753,-430.0,0.00020273,2]
[363051222,1748561444762,-960.07,0.00020273,2]
[363051224,1748561444772,-430.0,0.00020273,2]
[363051226,1748561444781,-253.78,0.00020273,2]
[363051228,1748561444790,-430.0,0.00020273,2]
[363051230,1748561444799,-1196.95,0.00020273,2]
[363051232,1748561444809,-430.0,0.00020273,2]
[363051234,1748561444822,-430.0,0.00020273,2]
[363051236,1748561444832,-430.0,0.00020273,2]
[363051238,1748561444841,-430.0,0.00020273,2]
[363051240,1748561444851,-430.0,0.00020273,2]
[363051242,1748561444862,-961.28,0.00020273,2]
[363051244,1748561444872,-430.0,0.00020273,2]
[363051246,1748561444881,-430.0,0.00020273,2]
[363051248,1748561444892,-430.0,0.00020273,2]
[363051250,1748561444901,-537.913,0.00020311,2]
[363051252,1748561444912,-430.0,0.00020547,2]
[363051254,1748561444922,-430.0,0.00020547,2]
[363051256,1748561444931,-430.0,0.00020547,2]
[363051258,1748561444940,-570.74,0.00020547,2]
[363051260,1748561444950,-430.0,0.00020547,2]
[363051262,1748561444959,-430.0,0.00020547,2]
[363051264,1748561444968,-462.18,0.00020547,2]
[363051266,1748561444978,-430.0,0.00020547,2]
[363051268,1748561444987,-430.0,0.00020547,2]
[363051270,1748561444997,-430.0,0.00020547,2]
[363051272,1748561445006,-430.0,0.00020547,2]
[363051274,1748561445016,-430.0,0.00020547,2]
[363051275,1748561445025,-490.83,0.00020547,2]
[363051278,1748561445034,-430.0,0.00020547,2]
[363051280,1748561445044,-1003.69,0.00020547,2]
[363051282,1748561445054,-527.34,0.00020547,2]
[363051283,1748561445063,-615.59,0.00020547,2]
[363051285,1748561445072,-208.73269205,0.00020547,2]
[363051287,1748561445082,-430.0,0.00020547,2]
[363051290,1748561445091,-1465.79,0.00020547,2]
[363051292,1748561445101,-430.0,0.00020547,2]
[363051294,1748561445110,-592.81,0.00020547,2]
[363051296,1748561445120,-1359.89,0.00020547,2]
[363051298,1748561445130,-1341.51,0.00020547,2]
[363051300,1748561445140,-430.0,0.00020547,2]
[363051301,1748561445151,-1254.11,0.00020547,2]
[363051303,1748561445162,-430.0,0.00020547,2]
[363051305,1748561445171,-798.51,0.00020547,2]
[363051307,1748561445180,-436.17,0.00020547,2]
[363051309,1748561445190,-565.15,0.00020547,2]
[363051311,1748561445200,-430.0,0.00020547,2]
[363051314,1748561445210,-430.0,0.00020547,2]
[363051315,1748561445219,-430.0,0.00020547,2]
[363051317,1748561445231,-430.0,0.00020547,2]
[363051320,1748561445241,-4331.66,0.00020547,2]
[363051322,1748561445252,-543.43,0.00020547,2]
[363051323,1748561445262,-1894.21,0.00020547,2]
[363051325,1748561445271,-3074.02,0.00020547,2]
[363051327,1748561445280,-430.0,0.00020547,2]
[363051329,1748561445289,-430.0,0.00020547,2]
[363051331,1748561445298,-588.86,0.00020547,2]
[363051333,1748561445307,-1588.17,0.00020547,2]
[363051335,1748561445316,-601.77,0.00020547,2]
[363051337,1748561445325,-886.19,0.00020547,2]
[363051339,1748561445335,-2587.31,0.00020547,2]
[363051341,1748561445343,-1080.19,0.00020547,2]
[363051343,1748561445352,-430.0,0.00020547,2]
[363051345,1748561445362,-1472.51,0.00020547,2]
[363051347,1748561445371,-430.0,0.00020547,2]
[363051349,1748561445380,-624.8,0.00020547,2]
[363051351,1748561445389,-569.52,0.00020547,2]
[363051353,1748561445398,-430.0,0.00020547,2]
[363051355,1748561445407,-430.0,0.00020547,2]
[363051357,1748561445418,-528.92,0.00020547,2]
[363051359,1748561445427,-430.0,0.00020547,2]
[363051361,1748561445436,-960.07,0.00020547,2]
[363051363,1748561445447,-430.0,0.00020547,2]
[363051365,1748561445456,-430.0,0.00020547,2]
[363051367,1748561445465,-1196.95,0.00020547,2]
[363051369,1748561445474,-430.0,0.00020547,2]
[363051371,1748561445483,-155.92,0.00020547,2]
[363051373,1748561445492,-430.0,0.00020547,2]
[363051375,1748561445501,-430.0,0.00020547,2]
[363051377,1748561445511,-430.0,0.00020547,2]
[363051379,1748561445520,-961.28,0.00020547,2]
[363051381,1748561445529,-430.0,0.00020547,2]
[363051382,1748561445539,-430.0,0.00020547,2]
[363051384,1748561445548,-430.0,0.00020547,2]
[363051386,1748561445558,-207.4,0.00020586,2]
[363051388,1748561445570,-300.0,0.00020586,2]
[363051390,1748561445580,-300.0,0.00020586,2]
[363051392,1748561445589,-300.0,0.00020586,2]
[363051394,1748561445598,-300.0,0.00020586,2]
[363051396,1748561445607,-300.0,0.00020586,2]
[363051398,1748561445616,-300.0,0.00020586,2]
[363051400,1748561445625,-300.0,0.00020586,2]
[363051402,1748561445634,-300.0,0.00020586,2]
[363051404,1748561445643,-300.0,0.00020586,2]
[363051406,1748561445652,-300.0,0.00020586,2]
[363051408,1748561445662,-300.0,0.00020586,2]
[363051410,1748561445671,-300.0,0.00020586,2]
[363051412,1748561445680,-300.0,0.00020586,2]
[363051414,1748561445689,-300.0,0.00020586,2]
[363051416,1748561445698,-300.0,0.00020586,2]
[363051418,1748561445707,-642.65163875,0.0002067,2]
[363051420,1748561445716,-430.0,0.00020821,2]
[363051422,1748561445725,-430.0,0.00020821,2]
[363051424,1748561445735,-315.31411708,0.00020821,2]
[363051426,1748561445744,-570.74,0.00020821,2]
[363051428,1748561445753,-430.0,0.00020821,2]
[363051430,1748561445763,-468.55251858,0.00020821,2]
[363051432,1748561445772,-462.18,0.00020821,2]
[363051434,1748561445782,-398.09999562,0.00020821,2]
[363051436,1748561445790,-430.0,0.00020821,2]
[363051438,1748561445800,-430.0,0.00020821,2]
[363051440,1748561445810,-430.0,0.00020821,2]
[363051442,1748561445820,-512.23,0.00020821,2]
[363051444,1748561445830,-490.83,0.00020821,2]
[363051446,1748561445839,-340.78336282,0.00020821,2]
[363051448,1748561445848,-1003.69,0.00020821,2]
[363051450,1748561445858,-527.34,0.00020821,2]
[363051452,1748561445867,-615.59,0.00020821,2]
[363051454,1748561445877,-430.0,0.00020821,2]
[363051456,1748561445886,-1465.79,0.00020821,2]
[363051458,1748561445895,-430.0,0.00020821,2]
[363051460,1748561445904,-592.81,0.00020821,2]
[363051462,1748561445914,-1359.89,0.00020821,2]
[363051464,1748561445924,-1341.51,0.00020821,2]
[363051466,1748561445934,-430.0,0.00020821,2]
[363051468,1748561445944,-1254.11,0.00020821,2]
[363051470,1748561445954,-798.51,0.00020821,2]
[363051472,1748561445964,-436.17,0.00020821,2]
[363051474,1748561445973,-565.15,0.00020821,2]
[363051476,1748561445983,-430.0,0.00020821,2]
[363051478,1748561445992,-430.0,0.00020821,2]
[363051480,1748561446002,-430.0,0.00020821,2]
[363051482,1748561446012,-430.0,0.00020821,2]
[363051484,1748561446022,-4331.66,0.00020821,2]
[363051486,1748561446031,-543.43,0.00020821,2]
[363051488,1748561446040,-1894.21,0.00020821,2]
[363051490,1748561446049,-3074.02,0.00020821,2]
[363051492,1748561446059,-430.0,0.00020821,2]